bitfinex-derivatives/quotes_SOLF0:USTF0_20230103
["timestamp","ask_amount","ask_price","bid_price","bid_amount"]
[1672731022986,625.0,11.814,11.801,0.06876176]
[1672731023196,625.0,11.814,11.803,0.06209141]
[1672731023407,575.0,11.814,11.803,0.06209141]
[1672731024459,47.5983,11.818,11.805,16.97]
[1672731024666,591.94,11.821,11.807,0.06178106]
[1672731024877,591.94,11.821,11.81,0.06693863]
[1672731025297,16.97,11.824,11.811,50.0]
[1672731025606,66.97,11.824,11.813,0.06660442]
[1672731026979,16.97,11.822,11.813,0.06660442]
[1672731029286,16.73450782,11.822,11.813,0.06660442]
[1672731029706,16.94,11.819,11.813,0.06660442]
[1672731029914,16.85,11.815,11.813,0.06660442]
[1672731030123,16.85,11.815,11.81,0.06712453]
[1672731030337,16.85,11.815,11.808,0.06486711]
[1672731034965,16.94,11.812,11.808,0.06486711]
[1672731039165,16.96,11.809,11.808,6.711e-05]
[1672731039367,16.96,11.809,11.795,50.7999]
[1672731039582,16.92,11.806,11.795,50.7999]
[1672731040111,0.06274966,11.805,11.796,0.069334]
[1672731040315,0.06274966,11.805,11.796,4.069334]
[1672731040952,16.85,11.803,11.796,0.069334]
[1672731046312,0.06274966,11.805,11.796,0.069334]
[1672731048619,0.06274966,11.805,11.796,16.989334]
[1672731048933,0.06274966,11.805,11.797,4.0]
[1672731051354,575.0,11.808,11.805,0.03429816]
[1672731051563,16.94,11.811,11.805,0.03429816]
[1672731065432,16.76649608,11.811,11.805,0.03429816]
[1672731073636,16.96,11.809,11.805,0.03429816]
[1672731073850,16.96,11.809,11.804,0.06156776]
[1672731074062,16.96,11.807,11.804,0.06156776]
[1672731074376,16.96,11.807,11.801,0.06152344]
[1672731074584,16.96,11.807,11.8,0.06064279]
[1672731074900,16.96,11.807,11.799,0.07068518]
[1672731075531,67.84,11.815,11.799,0.07068518]
[1672731075532,16.96,11.801,11.799,0.07068518]
[1672731075742,16.96,11.801,11.786,20.86]
[1672731075743,16.96,11.801,11.796,0.06415597]
[1672731075951,16.96,11.801,11.794,0.06005245]
[1672731076161,16.96,11.801,11.793,0.06764381]
[1672731078575,16.96,11.803,11.793,0.06764381]
[1672731078893,16.96,11.807,11.793,0.06764381]
[1672731079101,16.96,11.807,11.796,0.06858728]
[1672731087193,16.72986658,11.807,11.796,0.06858728]
[1672731088453,591.96,11.81,11.796,0.06858728]
[1672731088664,591.96,11.81,11.799,0.06594617]
[1672731099272,591.76487679,11.81,11.799,0.06594617]
[1672731102115,16.96,11.81,11.799,0.06594617]
[1672731111993,16.73696441,11.81,11.799,0.06594617]
[1672731114614,16.86,11.81,11.799,0.06594617]
[1672731123873,16.93,11.812,11.799,0.06594617]
[1672731124086,16.93,11.812,11.798,4.0]
[1672731124294,16.82056371,11.812,11.798,4.0]
[1672731124714,16.82056371,11.812,11.799,49.6519]
[1672731124927,16.82056371,11.812,11.8,4.0]
[1672731125661,623.532,11.813,11.8,4.0]
[1672731126397,575.0,11.813,11.8,4.0]
[1672731126607,575.0,11.813,11.801,66.86]
[1672731126809,575.0,11.813,11.802,4.0]
[1672731127972,575.0,11.813,11.803,0.06193644]
[1672731128813,575.0,11.813,11.804,16.97]
[1672731129025,575.0,11.813,11.805,4.0]
[1672731137541,574.90218739,11.813,11.805,4.0]
[1672731138273,575.0,11.817,11.805,4.0]
[1672731138484,575.0,11.817,11.807,0.06836083]
[1672731146157,0.06123218,11.816,11.807,0.00037486]
[1672731160454,591.93,11.817,11.816,0.05096531]
[1672731160764,16.93,11.817,11.816,0.05096531]
[1672731162025,16.93,11.817,11.812,0.07091419]
[1672731162233,16.97,11.815,11.812,1.419e-05]
[1672731162555,16.97,11.813,11.798,4.0]
[1672731162867,16.97,11.813,11.8,51.7117]
[1672731163286,0.07095915,11.811,11.8,51.7117]
[1672731163600,0.07095915,11.811,11.802,0.06582499]
[1672731164129,0.07095915,11.811,11.803,16.97]
[1672731164338,0.07095915,11.811,11.804,4.0]
[1672731165493,0.07095915,11.811,11.804,50.91025906]
[1672731172742,575.0,11.816,11.805,4.0]
[1672731172952,575.0,11.816,11.805,20.92]
[1672731174209,575.0,11.816,11.806,0.06100206]
[1672731178524,16.97,11.827,11.813,16.84]
[1672731178832,575.0,11.828,11.816,4.06659537]
[1672731179786,575.0,11.828,11.817,16.84]
[1672731179994,575.0,11.828,11.818,4.0]
[1672731180310,575.0,11.828,11.819,0.06715988]
[1672731185144,16.81,11.832,11.819,0.06715988]
[1672731190718,115.0939,11.834,11.819,17.03715988]
[1672731190929,115.0939,11.834,11.822,0.06980654]
[1672731191349,16.86,11.834,11.822,0.06980654]
[1672731191560,575.0,11.841,11.822,0.06980654]
[1672731191561,16.97,11.839,11.824,16.97]
[1672731191876,4.0,11.838,11.827,0.06086968]
[1672731192189,16.97,11.839,11.827,0.06086968]
[1672731193453,16.82023608,11.839,11.827,0.06086968]
[1672731195449,66.83,11.834,11.827,0.06086968]
[1672731195659,4.0,11.833,11.827,0.06086968]
[1672731198186,4.0,11.833,11.827,6.968e-05]
[1672731199764,16.89714795,11.834,11.827,6.968e-05]
[1672731200076,66.89714795,11.834,11.827,6.968e-05]
[1672731200286,4.0,11.829,11.827,6.968e-05]
[1672731200498,4.0,11.829,11.824,0.0646616]
[1672731200711,4.0,11.829,11.822,0.06478352]
[1672731200916,16.97,11.83,11.822,0.06478352]
[1672731203966,16.87,11.83,11.822,0.06478352]
[1672731204176,4.0,11.829,11.822,0.06478352]
[1672731204597,16.87,11.83,11.822,0.06478352]
[1672731208589,50.0,11.824,11.822,8.352e-05]
[1672731208803,16.86,11.823,11.808,50.7429]
[1672731209011,20.86,11.823,11.809,4.0]
[1672731209221,4.0,11.822,11.809,4.0]
[1672731209644,0.06408503,11.82,11.811,0.06329511]
[1672731216794,0.00408503,11.82,11.811,50.06329511]
[1672731216998,16.87,11.833,11.818,16.91]
[1672731217310,4.0,11.832,11.819,4.0]
[1672731217947,0.0657247,11.83,11.821,0.06801376]
[1672731229081,50.0,11.834,11.83,0.06082264]
[1672731229401,4.0,11.833,11.822,4.0]
[1672731230137,4.0,11.833,11.823,0.06253549]
[1672731231187,0.04158189,11.823,11.822,4.0]
[1672731231397,0.04158189,11.823,11.82,4.0]
[1672731233605,0.062059,11.826,11.82,4.0]
[1672731245898,16.87,11.832,11.826,0.05540426]
[1672731246417,16.91,11.838,11.826,0.05540426]
[1672731246734,4.0,11.838,11.826,0.05540426]
[1672731246951,4.0,11.838,11.828,0.06653707]
[1672731247263,16.84,11.839,11.828,0.06653707]
[1672731247783,16.91,11.841,11.828,0.06653707]
[1672731247999,4.0,11.84,11.83,0.06781115]
[1672731248529,16.79,11.839,11.83,0.06781115]
[1672731248839,4.0,11.838,11.83,0.06781115]
[1672731250305,16.82,11.837,11.83,0.06781115]
[1672731250522,4.0,11.836,11.83,0.06781115]
[1672731251152,16.82,11.837,11.83,0.06781115]
[1672731252727,20.8,11.84,11.83,0.06781115]
[1672731256088,16.8,11.84,11.83,0.06781115]
[1672731258407,16.72,11.84,11.83,0.06781115]
[1672731258617,4.0,11.837,11.83,0.06781115]
[1672731259038,3.84859661,11.837,11.83,0.06781115]
[1672731259561,16.88,11.838,11.83,0.06781115]
[1672731262291,16.75,11.84,11.83,0.06781115]
[1672731262502,4.0,11.839,11.83,0.06781115]
[1672731263452,16.75,11.84,11.83,0.06781115]
[1672731271858,16.51093988,11.84,11.83,0.06781115]
[1672731273643,16.88,11.837,11.83,0.06781115]
[1672731273857,4.0,11.836,11.83,0.06781115]
[1672731276064,16.88,11.837,11.83,0.06781115]
[1672731276796,16.75,11.832,11.812,20.86]
[1672731277115,16.86,11.827,11.816,46.0739]
[1672731277326,4.0,11.826,11.817,4.0]
[1672731277536,20.73,11.831,11.817,4.0]
[1672731277850,0.06564879,11.828,11.82,0.0636582]
[1672731278060,0.06564879,11.828,11.821,50.0]
[1672731278270,0.06564879,11.828,11.822,4.0]
[1672731279740,16.73,11.831,11.822,4.0]
[1672731279955,575.0,11.84,11.822,4.0]
[1672731279956,16.84,11.842,11.829,16.78]
[1672731280168,20.88,11.841,11.83,4.0]
[1672731280379,4.0,11.84,11.83,4.0]
[1672731280794,4.0,11.84,11.831,0.06329514]
[1672731283005,16.86,11.837,11.831,0.06329514]
[1672731293730,16.72106324,11.837,11.831,0.06329514]
[1672731295938,16.88,11.84,11.831,0.06329514]
[1672731296254,4.0,11.839,11.831,50.06329514]
[1672731296570,4.0,11.839,11.832,4.0]
[1672731296776,20.77,11.842,11.832,4.0]
[1672731296987,16.72,11.837,11.831,0.06329514]
[1672731297303,4.0,11.836,11.831,0.06329514]
[1672731298459,16.72,11.837,11.831,0.06329514]
[1672731301400,16.75,11.835,11.831,0.06329514]
[1672731302453,16.88,11.837,11.831,0.06329514]
[1672731306023,16.80805062,11.837,11.831,0.06329514]
[1672731307073,16.88,11.849,11.833,16.75]
[1672731307287,16.88,11.849,11.837,0.07144928]
[1672731307602,4.0,11.848,11.837,0.07144928]
[1672731308017,4.0,11.846,11.837,0.07144928]
[1672731308646,16.75,11.847,11.837,0.07144928]
[1672731309069,16.86,11.847,11.837,0.07144928]
[1672731309282,4.0,11.846,11.837,0.07144928]
[1672731309809,0.06056101,11.837,11.834,4.0]
[1672731311281,0.06056101,11.837,11.831,50.06160365]
[1672731311595,0.06056101,11.837,11.831,0.06160365]
[1672731317062,0.06184046,11.84,11.832,20.69]
[1672731317271,0.06184046,11.84,11.834,16.86]
[1672731317475,0.06184046,11.84,11.835,4.0]
[1672731319791,0.06184046,11.84,11.834,16.86]
[1672731322314,0.06184046,11.84,11.834,67.637]
[1672731323574,0.06184046,11.84,11.835,4.0]
[1672731325254,4.046e-05,11.84,11.835,4.0]
[1672731325464,16.71,11.849,11.835,4.0]
[1672731326410,16.71,11.849,11.838,0.06145297]
[1672731332614,16.86,11.851,11.838,0.06145297]
[1672731332928,4.0,11.85,11.84,0.0626693]
[1672731333139,591.69,11.857,11.84,16.9226693]
[1672731333348,16.86,11.863,11.846,16.86]
[1672731333559,16.86,11.863,11.851,50.0]
[1672731333766,16.86,11.863,11.853,0.06722325]
[1672731334190,4.0,11.872,11.853,0.06722325]
[1672731334191,4.0,11.862,11.853,0.06722325]
[1672731334400,16.86,11.858,11.853,0.0691631]
[1672731336501,16.86,11.855,11.853,0.0691631]
[1672731336710,16.86,11.855,11.85,0.06762216]
[1672731336924,16.86,11.855,11.848,0.06049969]
[1672731337965,16.67400067,11.855,11.848,0.06049969]
[1672731338918,16.69,11.852,11.848,0.06049969]
[1672731339234,16.81,11.849,11.846,0.0697678]
[1672731339444,16.86,11.846,11.843,0.06404482]
[1672731339760,16.86,11.846,11.84,0.07135271]
[1672731340180,16.86,11.848,11.84,0.07135271]
[1672731340390,16.8,11.851,11.84,0.07135271]
[1672731341023,16.86,11.853,11.842,50.0]
[1672731341336,16.86,11.853,11.843,4.06678362]
[1672731342800,16.86,11.853,11.843,0.06678362]
[1672731347007,4.0,11.85,11.843,0.06678362]
[1672731347217,4.0,11.85,11.842,0.06800602]
[1672731347427,4.0,11.85,11.842,0.06989993]
[1672731347640,16.86,11.848,11.842,0.06989993]
[1672731347843,4.0,11.847,11.842,0.06989993]
[1672731348052,16.86,11.848,11.842,0.06989993]
[1672731350265,16.62198475,11.848,11.842,0.06989993]
[1672731351837,45.9462,11.853,11.842,0.06989993]
[1672731352054,16.86,11.85,11.842,0.06989993]
[1672731353216,16.86,11.853,11.842,0.06989993]
[1672731353416,16.86,11.853,11.842,4.06989993]
[1672731360881,591.86,11.86,11.843,16.86]
[1672731361092,16.86,11.86,11.851,50.0]
[1672731361302,16.86,11.86,11.852,4.0]
[1672731363091,50.0,11.865,11.852,4.0]
[1672731363300,16.8,11.863,11.854,0.06988654]
[1672731363613,4.0,11.862,11.854,0.06988654]
[1672731364456,16.8,11.863,11.854,0.06988654]
[1672731378013,16.70003211,11.863,11.854,0.06988654]
[1672731379485,16.86,11.861,11.854,0.06988654]
[1672731379694,4.0,11.86,11.854,0.06988654]
[1672731380430,4.0,11.858,11.854,0.06988654]
[1672731382847,16.86,11.859,11.854,0.06988654]
[1672731391360,16.65153394,11.859,11.854,0.06988654]
[1672731393459,4.0,11.858,11.844,70.065]
[1672731394304,0.06781442,11.855,11.847,0.06398504]
[1672731406182,0.06781442,11.855,11.847,4.06398504]
[1672731406708,16.83,11.861,11.855,0.00918743]
[1672731411434,0.08402601,11.855,11.854,0.06354297]
[1672731411645,0.08402601,11.855,11.85,0.06906579]
[1672731423944,16.83,11.859,11.855,0.0431285]
[1672731426462,4.0,11.858,11.853,0.06196653]
[1672731429932,20.83,11.859,11.853,0.06196653]
[1672731432138,4.0,11.858,11.853,6.653e-05]
[1672731432454,4.0,11.858,11.845,4.0]
[1672731433510,0.0606121,11.856,11.847,0.06285375]
[1672731443807,0.0606121,11.856,11.852,50.0]
[1672731444023,0.0606121,11.856,11.853,4.0]
[1672731444233,0.06611995,11.859,11.853,4.0]
[1672731444751,0.06611995,11.859,11.852,50.06555922]
[1672731445383,0.06611995,11.859,11.853,4.0]
[1672731446229,16.81,11.861,11.859,0.06518853]
[1672731448436,4.0,11.86,11.859,8.853e-05]
[1672731448855,16.81,11.861,11.859,8.853e-05]
[1672731452322,4.0,11.86,11.859,8.853e-05]
[1672731452525,4.0,11.86,11.844,49.9537]
[1672731452734,4.0,11.854,11.844,49.9537]
[1672731452945,4.0,11.854,11.842,50.0]
[1672731453478,4.0,11.852,11.836,20.83]
[1672731453679,4.0,11.852,11.837,50.1447]
[1672731453895,0.0625977,11.849,11.841,0.0673237]
[1672731454528,0.0625977,11.849,11.843,4.0]
[1672731456102,0.0625977,11.849,11.841,0.0673237]
[1672731456318,0.0625977,11.849,11.842,50.0]
[1672731456528,0.0625977,11.849,11.843,4.0]
[1672731457790,0.0625977,11.849,11.842,50.0]
[1672731458003,16.7,11.848,11.841,0.0673237]
[1672731458202,20.83,11.847,11.841,0.0673237]
[1672731459999,16.83,11.847,11.841,0.0673237]
[1672731464616,16.65574713,11.847,11.841,0.0673237]
[1672731466725,4.0,11.846,11.841,2.37e-05]
[1672731468300,16.65574713,11.847,11.841,2.37e-05]
[1672731469036,16.8925977,11.849,11.841,2.37e-05]
[1672731469986,4.0,11.848,11.841,2.37e-05]
[1672731472519,16.8925977,11.849,11.841,2.37e-05]
[1672731472714,0.0625977,11.849,11.841,2.37e-05]
[1672731474401,4.0625977,11.849,11.841,2.37e-05]
[1672731478712,0.0625977,11.849,11.841,2.37e-05]
[1672731479446,16.83,11.85,11.841,2.37e-05]
[1672731479655,4.0,11.849,11.841,2.37e-05]
[1672731480393,4.06104945,11.849,11.841,2.37e-05]
[1672731483863,16.83,11.848,11.841,2.37e-05]
[1672731484179,4.0,11.847,11.841,2.37e-05]
[1672731484488,4.0,11.845,11.841,2.37e-05]
[1672731485961,16.83,11.846,11.841,2.37e-05]
[1672731486170,16.83,11.847,11.841,2.37e-05]
[1672731486382,4.0,11.846,11.841,2.37e-05]
[1672731488377,16.83,11.847,11.841,2.37e-05]
[1672731492783,16.70609102,11.847,11.841,2.37e-05]
[1672731494996,0.06104945,11.849,11.841,50.0000237]
[1672731495202,0.06104945,11.849,11.842,4.0]
[1672731496991,0.06104945,11.849,11.841,50.0000237]
[1672731497201,0.06104945,11.849,11.842,4.0]
[1672731498673,0.06104945,11.849,11.841,50.0000237]
[1672731498881,0.06104945,11.849,11.842,4.0]
[1672731500668,0.06104945,11.849,11.841,50.0000237]
[1672731500879,0.06104945,11.849,11.842,4.0]
[1672731505614,0.06104945,11.849,11.841,50.0000237]
[1672731506351,16.83,11.852,11.849,0.01579428]
[1672731508661,16.7,11.85,11.846,0.06443029]
[1672731508870,16.7,11.85,11.842,4.0]
[1672731509082,16.7,11.85,11.844,0.06441347]
[1672731513702,16.73,11.852,11.844,0.06441347]
[1672731513918,16.73,11.852,11.844,0.06744899]
[1672731515810,16.83,11.846,11.831,50.0]
[1672731516021,4.0,11.845,11.833,51.3462]
[1672731516860,0.06677659,11.844,11.835,0.06525269]
[1672731528425,0.13073961,11.835,11.833,51.3462]
[1672731528633,4.0,11.846,11.833,51.3462]
[1672731529262,16.83,11.847,11.833,51.3462]
[1672731529473,0.06611437,11.845,11.836,0.06915755]
[1672731536303,16.76611437,11.845,11.836,0.06915755]
[1672731542715,16.81,11.847,11.845,0.02683276]
[1672731543553,16.83,11.846,11.845,0.02683276]
[1672731543757,4.0,11.845,11.841,0.06974639]
[1672731545232,16.74,11.844,11.833,47.3462]
[1672731545447,16.74,11.844,11.831,50.0]
[1672731545448,16.7,11.84,11.825,20.83]
[1672731545658,16.75,11.839,11.828,46.3003]
[1672731545868,4.0,11.838,11.829,4.0]
[1672731546391,4.0,11.838,11.829,4.07115418]
[1672731546601,4.06801669,11.838,11.829,4.07115418]
[1672731547547,4.06801669,11.838,11.829,0.07115418]
[1672731548492,0.06801669,11.838,11.829,0.07115418]
[1672731551328,4.06801669,11.838,11.829,0.07115418]
[1672731551540,16.7,11.836,11.829,0.07115418]
[1672731551751,4.0,11.835,11.829,0.07115418]
[1672731552279,20.87801669,11.838,11.829,0.07115418]
[1672731555010,16.87801669,11.838,11.829,0.07115418]
[1672731558165,16.75880558,11.838,11.829,0.07115418]
[1672731559108,16.75,11.841,11.829,0.07115418]
[1672731559428,4.06709584,11.84,11.829,0.07115418]
[1672731559639,4.06709584,11.84,11.831,50.0]
[1672731559850,4.06709584,11.84,11.832,4.0]
[1672731560163,4.06709584,11.84,11.832,4.06482003]
[1672731560368,0.06709584,11.84,11.832,4.06482003]
[1672731560690,0.06709584,11.84,11.832,0.06482003]
[1672731562475,4.06709584,11.84,11.832,0.06482003]
[1672731563212,16.83,11.839,11.832,0.06482003]
[1672731563421,4.0,11.838,11.832,0.06482003]
[1672731565836,4.0,11.838,11.823,16.83]
[1672731566992,0.06569216,11.836,11.827,0.06826914]
[1672731579706,16.83,11.839,11.836,0.16676245]
[1672731579915,4.0,11.838,11.828,4.0]
[1672731580650,4.0,11.838,11.823,20.83]
[1672731580861,0.06181235,11.835,11.827,0.06336256]
[1672731591897,4.0,11.84,11.835,0.01393274]
[1672731592107,591.83,11.841,11.835,0.01393274]
[1672731592528,16.83,11.839,11.835,0.01393274]
[1672731592737,4.0,11.838,11.835,0.01393274]
[1672731593262,16.83,11.839,11.835,0.01393274]
[1672731593788,16.83,11.84,11.835,0.01393274]
[1672731594945,16.75,11.839,11.835,0.01393274]
[1672731595152,4.0,11.838,11.835,0.01393274]
[1672731596095,16.75,11.839,11.835,0.01393274]
[1672731603769,4.0,11.84,11.835,0.01393274]
[1672731604397,20.83,11.841,11.835,0.01393274]
[1672731604606,16.83,11.841,11.835,0.01393274]
[1672731605978,16.83,11.843,11.835,0.01393274]
[1672731606179,16.83,11.843,11.835,0.07719117]
[1672731606394,16.74,11.846,11.843,0.16684499]
[1672731611432,16.67105307,11.846,11.843,0.16684499]
[1672731615751,16.83,11.848,11.843,0.16684499]
[1672731617643,16.71,11.851,11.843,0.16684499]
[1672731617853,16.71,11.851,11.843,0.23776522]
[1672731618696,16.83,11.86,11.844,16.83]
[1672731618907,4.0,11.859,11.848,0.06891337]
[1672731619636,16.83,11.86,11.848,0.06891337]
[1672731619848,16.83,11.86,11.851,50.0]
[1672731620061,16.83,11.86,11.852,4.0]
[1672731620375,16.73,11.858,11.852,4.0]
[1672731620587,4.0,11.857,11.851,0.06692568]
[1672731621635,16.73,11.858,11.851,0.06692568]
[1672731623528,16.83,11.856,11.851,0.06692568]
[1672731623740,16.83,11.854,11.851,0.06692568]
[1672731623950,4.0,11.853,11.848,0.07053589]
[1672731624160,16.75,11.849,11.846,0.06634255]
[1672731624369,16.83,11.851,11.843,0.22811544]
[1672731624582,20.83,11.853,11.843,0.22811544]
[1672731625312,16.83,11.85,11.843,0.22811544]
[1672731625519,4.0,11.846,11.836,50.4241]
[1672731626153,16.83,11.847,11.836,50.4241]
[1672731626358,0.06898388,11.846,11.837,4.0]
[1672731626574,0.06730551,11.846,11.841,50.0]
[1672731626890,0.00243909,11.846,11.842,4.0]
[1672731634352,0.00243909,11.846,11.841,98.2087]
[1672731634984,0.00243909,11.846,11.841,97.98675947]
[1672731635508,0.00243909,11.846,11.841,47.98675947]
[1672731635719,0.00243909,11.846,11.841,97.98675947]
[1672731638234,0.00243909,11.846,11.842,4.0]
[1672731641814,16.84,11.855,11.842,4.0]
[1672731642759,16.84,11.855,11.844,0.06132933]
[1672731646018,16.84,11.859,11.844,4.06132933]
[1672731646224,16.84,11.859,11.847,0.06738396]
[1672731650746,16.84,11.858,11.847,0.06738396]
[1672731650959,4.0,11.857,11.848,0.07000444]
[1672731651480,16.84,11.858,11.848,0.07000444]
[1672731654106,16.74,11.861,11.848,0.07000444]
[1672731654316,16.74,11.861,11.852,4.0]
[1672731654523,16.74,11.861,11.852,4.06659379]
[1672731655684,16.51935806,11.861,11.852,4.06659379]
[1672731658102,16.51935806,11.861,11.852,0.06659379]
[1672731660621,16.51935806,11.861,11.852,4.06659379]
[1672731660835,16.77,11.864,11.852,4.06659379]
[1672731661258,4.0,11.863,11.852,4.06659379]
[1672731661783,16.77,11.864,11.852,4.06659379]
[1672731669032,16.8,11.863,11.852,4.06659379]
[1672731670181,46.9195,11.871,11.852,20.79659379]
[1672731670397,16.78,11.867,11.857,0.06091619]
[1672731670607,16.78,11.867,11.858,0.06764689]
[1672731670812,16.78,11.867,11.858,0.07003301]
[1672731673335,50.0,11.883,11.862,16.81]
[1672731673648,50.0,11.883,11.858,0.07003301]
[1672731673649,16.78,11.88,11.87,50.0]
[1672731673859,16.78,11.88,11.871,4.0]
[1672731674389,16.78,11.882,11.871,4.06119478]
[1672731676282,16.81,11.88,11.871,4.06119478]
[1672731676489,16.81,11.877,11.871,0.06405632]
[1672731676700,16.81,11.877,11.865,4.0]
[1672731676701,16.81,11.877,11.87,0.06880556]
[1672731676904,16.81,11.877,11.869,0.06645529]
[1672731677642,16.8,11.874,11.869,0.06645529]
[1672731677961,16.78,11.872,11.869,0.06645529]
[1672731678168,4.0,11.871,11.866,0.06741571]
[1672731678376,4.0,11.871,11.864,0.06007392]
[1672731678588,16.78,11.872,11.864,0.06007392]
[1672731679114,16.65,11.871,11.864,0.06007392]
[1672731679748,16.79,11.869,11.864,0.06007392]
[1672731679960,4.0,11.868,11.864,0.06007392]
[1672731680484,4.0,11.865,11.855,4.0]
[1672731680694,16.65,11.864,11.855,4.0]
[1672731680906,16.65,11.864,11.853,4.0]
[1672731681531,0.06439749,11.863,11.854,0.06740312]
[1672731683958,0.06439749,11.863,11.855,16.79]
[1672731684271,0.06439749,11.863,11.86,50.0]
[1672731684481,0.06702651,11.866,11.861,4.0]
[1672731684690,0.06086965,11.868,11.861,4.0]
[1672731687315,16.79,11.879,11.867,50.0]
[1672731687528,16.79,11.879,11.87,50.0]
[1672731687736,16.79,11.879,11.871,4.0]
[1672731688159,16.79,11.879,11.871,4.06135246]
[1672731688897,16.76,11.881,11.871,4.06135246]
[1672731689101,4.0,11.88,11.871,4.06135246]
[1672731689735,16.76,11.881,11.871,4.06135246]
[1672731690578,50.2909,11.884,11.871,4.06135246]
[1672731690579,67.0309,11.884,11.871,4.06135246]
[1672731694045,16.65,11.882,11.871,4.06135246]
[1672731694255,4.0,11.881,11.871,4.06135246]
[1672731694779,16.65,11.882,11.871,4.06135246]
[1672731699820,16.53570829,11.882,11.871,4.06135246]
[1672731702552,16.6,11.885,11.871,4.06135246]
[1672731702761,16.6,11.885,11.88,3.83412697]
[1672731703397,16.63,11.889,11.88,3.83412697]
[1672731703609,16.63,11.889,11.88,3.89569386]
[1672731704027,16.63,11.889,11.88,0.06156689]
[1672731706871,16.64,11.895,11.88,0.06156689]
[1672731707082,16.64,11.895,11.883,0.06149806]
[1672731707292,16.76,11.893,11.883,0.06149806]
[1672731707505,16.76,11.893,11.884,0.07022496]
[1672731710229,16.76,11.895,11.884,0.07022496]
[1672731710445,4.0,11.899,11.886,4.0]
[1672731710654,4.0,11.899,11.888,0.06458083]
[1672731711181,16.76,11.894,11.888,0.06458083]
[1672731713179,4.0,11.896,11.872,20.76]
[1672731713180,16.64,11.889,11.872,20.76]
[1672731713389,16.76,11.886,11.875,49.588]
[1672731713595,4.0,11.885,11.876,4.0]
[1672731713912,16.76,11.886,11.876,4.0]
[1672731714117,0.06547037,11.885,11.877,0.06110835]
[1672731715908,0.06547037,11.885,11.879,50.0]
[1672731716120,0.06547037,11.885,11.88,4.0]
[1672731718643,0.06547037,11.885,11.879,50.0]
[1672731719586,0.06547037,11.885,11.88,4.0]
[1672731720327,0.06547037,11.885,11.879,50.0]
[1672731720743,0.06547037,11.885,11.877,0.06110835]
[1672731720957,16.65,11.883,11.877,0.06110835]
[1672731723478,0.06547037,11.885,11.877,0.06110835]
[1672731727888,16.76,11.886,11.885,0.01119262]
[1672731728838,16.76,11.886,11.878,0.06811628]
[1672731731882,66.9085,11.889,11.878,50.06811628]
[1672731732089,16.67,11.889,11.879,4.0]
[1672731734725,16.74,11.89,11.879,4.0]
[1672731734937,16.74,11.89,11.88,0.06649225]
[1672731736516,16.65,11.892,11.88,0.06649225]
[1672731736825,16.65,11.892,11.882,0.06914855]
[1672731737036,16.76,11.903,11.889,4.0]
[1672731737248,4.0,11.901,11.892,0.06860337]
[1672731737665,16.72,11.9,11.892,0.06860337]
[1672731737874,4.0,11.899,11.892,0.06860337]
[1672731738824,16.76,11.898,11.892,0.06860337]
[1672731739037,4.0,11.897,11.892,0.06860337]
[1672731739244,16.74,11.896,11.892,0.06860337]
[1672731739457,4.0,11.895,11.892,0.06860337]
[1672731739666,4.0,11.895,11.889,0.06516289]
[1672731739874,16.74,11.896,11.888,0.0642385]
[1672731740084,16.74,11.896,11.888,0.06839472]
[1672731740295,16.65,11.899,11.888,50.06839472]
[1672731740505,4.0,11.898,11.889,4.0]
[1672731740926,16.65,11.899,11.889,4.0]